[Event "German Bundesliga 2023-24"]
[Site "Germany"]
[Date "2024.03.16"]
[Round "12"]
[White "Kovacevic, Aleksandar"]
[Black "Lai, Hing Ting"]
[Result "1-0"]
[ECO "B13"]
[WhiteElo "2445"]
[BlackElo "2464"]
[Annotator "TA"]
[PlyCount "65"]
[EventDate "2023.10.20"]
[EventType "team-tourn"]
[EventCountry "GER"]
[SourceTitle "playchess.com"]
[Source "ChessBase"]
[SourceQuality "1"]
[TimeControl "40/6000+30:3000+30"]

{[%evp 10,65,23,32,31,31,36,35,34,34,42,45,39,29,30,31,39,35,52,50,66,33,54,20,46,45,30,36,59,48,61,57,62,44,73,81,91,103,94,84,133,127,151,153,139,147,198,101,97,98,146,147,156,150,152,141,2233,2003]} 1. e4 {[%emt 0:01:00]} c6 {[%emt 0:01:00]} 2. d4 {[%emt 0:00:30]} d5 {[%emt 0:00:00]} 3. exd5 {[%emt 0:00:30]} cxd5 {[%emt 0:00:00]} 4. Bd3 {[%emt 0:00:00]} Nc6 {[%emt 0:00:30]} 5. c3 {[%emt 0:00:00]} Qc7 {[%emt 0:00:00]} 6. h3 {[%emt 0:00:30]} e6 {[%emt 0:03:00]} 7. Nf3 {[%emt 0:01:30]} Bd6 {[%emt 0:00:30]} 8. O-O {[%emt 0:01:30]} Nge7 {[%emt 0:01:30] White is slightly better.} 9. Re1 {[%emt 0:09:30]} h6 {[%emt 0:04:30]} 10. Nbd2 {[%emt 0:08:30][%cal Bb1d2,Bd2f1,Bf1e3,Be3g4,Bg4e5][%mdl 32]} O-O {[%emt 0:06:30]} 11. Nf1 {[%emt 0:00:30]} Bd7 {[%emt 0:06:30]} 12. Ne3 {[%emt 0:02:30]} Rae8 {[%emt 0:06:30]} 13. Bd2 {[%emt 0:05:30]} e5 {[%emt 0:07:30]} 14. dxe5 {[%emt 0:03:30]} Nxe5 {[%emt 0:00:30]} 15. Nxe5 {[%emt 0:01:30]} Bxe5 {[%emt 0:00:30]} 16. Ng4 {[%emt 0:07:30]} (16. Bc2 $5) 16... Bf4 {[%emt 0:05:30]} (16... Nc6 {simplifies} 17. Nxe5 Nxe5 18. Bf4 Nxd3 19. Bxc7 Rxe1+ 20. Qxe1 Nxe1 21. Rxe1 Be6) 17. Bxf4 {[%emt 0:01:30]} Qxf4 {[%emt 0:00:30]} 18. Ne5 {[%emt 0:00:30] Dodges Nc6} Rd8 {[%emt 0:06:30][%cal Be8d8,Bd8d6,Bd6e6][%mdl 32]} 19. Bc2 {[%emt 0:16:30]} Bc8 {[%emt 0:09:30]} 20. Re3 {[%emt 0:10:30]} (20. Qf3 {simplifies} Qxf3 21. Nxf3 Nc6 22. Rad1) 20... Rd6 {[%emt 0:11:30]} 21. Qe2 {[%emt 0:03:30] [#] Nd3 would now be deadly.} Qf6 {[%emt 0:08:30]} 22. Re1 {[%emt 0:03:30]} Re6 {[%emt 0:10:30]} 23. Qd3 {[%emt 0:19:47]} g6 {[%emt 0:00:30]} 24. Qd4 {[%emt 0:02:42]} b6 {[%emt 0:03:53] [#]} (24... a6 $142) 25. Qa4 $1 $16 {[%emt 0:01:29] White has more active pieces.} a5 {[%emt 0:10:36]} 26. Nd7 {[%emt 0:03:26]} Bxd7 {[%emt 0:00:02]} 27. Qxd7 {[%emt 0:00:05][%cal Re3e6]} Kg7 {[%emt 0:00:06]} (27... Rxe3 $16 {might work better.} 28. Rxe3 Nf5 29. Bxf5 Qxf5 30. Qxf5 gxf5) 28. R1e2 {[%emt 0:02:05]} (28. Rxe6 $18 fxe6 29. Re2 (29. Qxe6 Qxf2+ 30. Kh2 Rf7 $14)) 28... Rxe3 29. Rxe3 Nf5 ({Black should play} 29... Nc8) 30. Bxf5 Rd8 31. Qc7 gxf5 32. Re7 d4 $2 {[%mdl 8192]} (32... Rg8 $16 33. Rd7 Re8 34. Qg3+ (34. Rxd5 f4 $18) 34... Kh7 35. Rxd5 Re4) 33. Qxd8 {Weighted Error Value: White=0.08 (flawless) /Black=0.17 (very precise) .  Loses game:     	---       	Black=1      Mistake:       	White=1     	Black=3      Inaccurate:     	White=2     	Black=2      OK:         	White=15    	Black=5      Best:        	White=2     	Black=1} 1-0

[Event "German Bundesliga 2023-24"]
[Site "Germany"]
[Date "2024.03.16"]
[Round "12"]
[White "Wachinger, Nikolas"]
[Black "Bacrot, Etienne"]
[Result "0-1"]
[ECO "B47"]
[WhiteElo "2426"]
[BlackElo "2668"]
[Annotator "TA"]
[PlyCount "80"]
[EventDate "2023.10.20"]
[EventType "team-tourn"]
[EventCountry "GER"]
[SourceTitle "playchess.com"]
[Source "ChessBase"]
[SourceQuality "1"]
[TimeControl "40/6000+30:3000+30"]

{[%evp 19,80,24,41,25,41,44,51,0,35,40,49,56,71,69,60,61,60,62,80,79,79,69,70,69,117,0,0,0,0,0,0,0,0,0,0,0,0,0,0,-107,-117,-118,-135,-100,-107,-66,-54,-130,-118,-87,0,0,0,-1899,-1883,-1818,-1831,-1695,-1635,-1280,-1178,-1064,-929]} 1. e4 {[%emt 0:01:00]} c5 {[%emt 0:01:00]} 2. Nf3 {[%emt 0:00:00]} e6 {[%emt 0:00:00]} 3. d4 {[%emt 0:00:00]} cxd4 {[%emt 0:00:00]} 4. Nxd4 {[%emt 0:00:00]} Nc6 {[%emt 0:00:30]} 5. Nc3 {[%emt 0:00:00]} Qc7 {[%emt 0:00:00]} 6. f4 {[%emt 0:00:30]} a6 {[%emt 0:01:00]} 7. Nxc6 {[%emt 0:02:30]} Qxc6 {[%emt 0:03:30]} 8. Bd3 {[%emt 0:00:30]} b5 {[%emt 0:09:30]} 9. Qe2 {[%emt 0:07:30]} Bb7 {[%emt 0:01:30]} 10. Bd2 {[%emt 0:00:30]} Be7 {[%emt 0:11:30]} 11. a3 $1 {[%emt 0:06:30]} Rc8 {[%emt 0:05:30]} 12. Rf1 {[%emt 0:10:30]} Nf6 {[%emt 0:05:30]} 13. f5 {[%emt 0:21:30]} (13. g4 $14) 13... e5 {[%emt 0:17:30]} 14. g4 {[%emt 0:13:30] g5 ist eine echte Drohung.} h6 {[%emt 0:00:00]} 15. O-O-O {[%emt 0:03:30]} b4 {[%emt 0:07:00]} 16. axb4 {[%emt 0:00:30]} Bxb4 {[%emt 0:00:30]} 17. h4 {[%emt 0:04:30]} d6 {[%emt 0:06:30]} 18. Rfe1 {[%emt 0:17:04]} Qb6 {[%emt 0:12:30]} 19. g5 {[%emt 0:02:48]} Nd7 {[%emt 0:03:30]} 20. Bc4 {[%emt 0:01:55]} hxg5 {[%emt 0:09:44]} 21. hxg5 {[%emt 0:00:40]} Nc5 {[%emt 0:00:15]} (21... Rh4 $14) 22. g6 {[%emt 0:08:01]} (22. Qg4 $16) 22... f6 $1 $40 {[%emt 0:05:30][%mdl 128] Schwarz startet einen Angriff.} 23. Rh1 {[%emt 0:00:15]} Rxh1 {[%emt 0:00:07]} 24. Rxh1 {[%emt 0:00:03] Zielt auf Rh8+ ab.} Bxc3 {[%emt 0:00:03]} 25. Bxc3 {[%emt 0:00:28] Und jetzt Rh8+ wäre schön.} Nxe4 {[%emt 0:00:23]} 26. Rh8+ {[%emt 0:02:34]} Ke7 {[%emt 0:00:03]} 27. Rh7 {[%emt 0:00:03]} d5 {[%emt 0:06:22]} 28. Rxg7+ {[%emt 0:02:03]} Kd6 {[%emt 0:00:01] Tanz auf der Rasierklinge.} 29. Rxb7 {[%emt 0:02:41]} Qxb7 $17 {[%emt 0:00:04]} 30. Bxa6 {[%emt 0:00:01] [#]} Ra8 $1 {[%emt 0:00:58]} 31. Qxe4 {[%emt 0:01:24]} (31. Bxe5+ $2 fxe5 32. Qd3 Rxa6 $19 (32... Qxa6 $2 33. Qxa6+ Rxa6 34. Kb1 $19)) 31... Qxa6 {[%emt 0:00:22][%mdl 4096] Endspiel. KQR-KQB} 32. Bb4+ {[%emt 0:01:23]} Kc6 {[%emt 0:00:11]} 33. Qe3 {[%emt 0:01:09]} (33. Qd3 $1 $15 Qb6 34. c4 Qg1+ (34... Qxb4 35. Qxd5+ Kb6 36. Qxa8 $11) (34... Ra1+ 35. Kc2 $11) 35. Kc2 Qg2+ 36. Qd2 Qe4+ 37. Qd3 Qxc4+ 38. Qxc4+ dxc4 39. Kd2 (39. Be7 $2 Kd5 $19)) 33... Qc4 {[%emt 0:03:11]} 34. Be7 {[%emt 0:00:33][%cal Oe3c3] [#] Schwarz muss nun Qc3! beachten.} Ra1+ {[%emt 0:02:07]} ({Besser ist} 34... d4 $1 $17 {[%cal Rd4e3]} 35. Qd3 Qd5) 35. Kd2 $11 {[%emt 0:00:01][%cal Ob2b3] b3! wäre nun fies.} Kd7 {[%emt 0:00:05]} 36. Bxf6 $2 {[%emt 0:01:18][%mdl 8192]} (36. g7 $11 Qf1 (36... Kxe7 37. g8=Q $11) 37. Qe2 (37. g8=Q $2 Rd1+ 38. Kc3 Qc4#)) 36... Qb4+ $19 {[%emt 0:00:22] Schwarz steht klar auf Gewinn.} 37. Qc3 {[%emt 0:00:20]} Qf4+ {[%emt 0:00:08]} 38. Qe3 {[%emt 0:00:10] [#]} Rd1+ $3 {[%emt 0:00:22][%mdl 512]} 39. Kxd1 {[%emt 0:00:34]} Qxe3 {[%emt 0:00:05]} 40. g7 {[%emt 0:00:42]} Qg1+ {[%emt 0:00:06] Gewichteter Fehlerwert: Weiß=0.41/Schwarz=0.09 (makellos) .  Verlustzug:     	Weiß=1     	---        Fehler:       	Weiß=4     	Schwarz=2     Ungenau:       	---       	Schwarz=1     OK:         	Weiß=12    	Schwarz=7     Bester:       	Weiß=4     	Schwarz=5     Stark:        	---       	Schwarz=2} 0-1

[Event "German Bundesliga 2023-24"]
[Site "Germany"]
[Date "2024.03.16"]
[Round "12"]
[White "Heinz, Timothee"]
[Black "Zelcic, Robert"]
[Result "1/2-1/2"]
[ECO "E04"]
[WhiteElo "2372"]
[BlackElo "2476"]
[Annotator "TA"]
[PlyCount "90"]
[EventDate "2023.10.20"]
[EventType "team-tourn"]
[EventCountry "GER"]
[SourceTitle "playchess.com"]
[Source "ChessBase"]
[SourceQuality "1"]
[TimeControl "40/6000+30:3000+30"]

{[%evp 10,90,29,10,46,16,28,37,42,26,29,29,40,43,72,61,56,69,74,77,86,88,87,25,29,22,33,40,43,38,36,33,47,24,62,69,58,9,39,0,0,0,21,15,22,0,13,12,25,0,0,3,8,4,6,0,0,0,0,0,0,0,0,0,0,0,0,0,0,0,0,0,0,0,0,0,0,0,0,0,0,0,0]} 1. d4 {[%emt 0:01:00]} Nf6 {[%emt 0:01:00]} 2. Nf3 {[%emt 0:00:00]} d5 {[%emt 0:00:00][%cal Bd7d5,Bd5c4][%mdl 32]} 3. c4 {[%emt 0:00:00]} e6 {[%emt 0:00:00]} 4. g3 {[%emt 0:00:30]} dxc4 {[%emt 0:00:30]} 5. Bg2 {[%emt 0:00:00]} Bb4+ {[%emt 0:00:00]} 6. Bd2 {[%emt 0:00:00]} c5 {[%emt 0:00:00]} 7. Qc1 {[%emt 0:01:30]} Bxd2+ {[%emt 0:00:30]} 8. Nbxd2 {[%emt 0:00:00]} cxd4 {[%emt 0:00:30] White is slightly better.} 9. Nxc4 {[%emt 0:02:00][%cal Oc4d6]} Nc6 {[%emt 0:00:30][%cal Oe6e5]} 10. O-O {[%emt 0:00:30][%cal Bh1f1,Bf1d1,Bd1d4][%mdl 32]} O-O {[%emt 0:00:30]} 11. Rd1 {[%emt 0:02:30]} Qe7 {[%emt 0:03:30]} 12. Nxd4 {[%emt 0:11:30]} Nxd4 {[%emt 0:00:30]} 13. Rxd4 {[%emt 0:00:00]} e5 {[%emt 0:00:30] [#]} 14. Rd1 {[%emt 0:00:00] White is more active.} e4 {[%emt 0:03:30]} 15. Qf4 {[%emt 0:05:30]} Be6 {[%emt 0:14:30]} 16. Qe5 {[%emt 0:06:30]} (16. Nd6 $16) 16... Rfd8 {[%emt 0:12:30]} 17. Bh3 {[%emt 0:21:30]} Re8 {[%emt 0:00:30]} 18. Bxe6 {[%emt 0:01:30]} Qxe6 {[%emt 0:00:30]} 19. Qxe6 {[%emt 0:00:30]} Rxe6 {[%emt 0:00:00]} 20. Rd4 {[%emt 0:00:00]} g6 {[%emt 0:17:00]} 21. Rad1 {[%emt 0:04:00]} Ra6 {[%emt 0:00:30]} 22. Rd6 {[%emt 0:08:30]} Rxd6 {[%emt 0:01:30]} 23. Rxd6 $14 {[%emt 0:03:30][%mdl 4096] Endgame. KRN-KRN} (23. Nxd6 $14 Rd8 24. Rd2) 23... Kg7 {[%emt 0:00:30]} 24. Kf1 {[%emt 0:04:30]} Rc8 {[%emt 0:01:30]} 25. b3 {[%emt 0:01:30]} Rc7 {[%emt 0:01:30]} 26. Ke1 {[%emt 0:02:30]} h5 {[%emt 0:04:30]} 27. f3 {[%emt 0:08:30]} Rc5 {[%emt 0:07:30]} 28. Kd2 {[%emt 0:04:30]} h4 {[%emt 0:21:40]} 29. Ke1 {[%emt 0:10:49]} hxg3 {[%emt 0:10:28] The position is equal.} 30. hxg3 {[%emt 0:01:02]} exf3 {[%emt 0:00:30]} 31. exf3 {[%emt 0:00:42]} Rh5 {[%emt 0:00:30]} 32. Ne3 {[%emt 0:01:15]} Ra5 {[%emt 0:00:30]} 33. a4 {[%emt 0:00:47]} b5 {[%emt 0:00:30]} 34. axb5 {[%emt 0:00:33]} Rxb5 {[%emt 0:00:30]} 35. Rd3 {[%emt 0:00:54]} Nh7 {[%emt 0:00:30]} 36. Nd5 {[%emt 0:00:48]} Ng5 {[%emt 0:00:30][%cal Og5f3]} 37. Nf4 {[%emt 0:00:43]} Ra5 {[%emt 0:00:30]} 38. Ke2 {[%emt 0:00:46]} Ra2+ {[%emt 0:00:30]} 39. Ke3 {[%emt 0:00:05]} a5 {[%emt 0:00:41]} 40. Rc3 {[%emt 0:00:30]} Ra3 {[%emt 0:01:16]} 41. Rd3 {[%emt 0:51:44]} Ra1 {[%emt 0:51:27]} 42. Ke2 {[%emt 0:04:50]} Rb1 {[%emt 0:02:22]} 43. Rc3 {[%emt 0:00:00]} Nh7 {[%emt 0:00:00]} 44. Nd3 {[%emt 0:00:00]} Nf6 {[%emt 0:00:00]} 45. Rc5 {[%emt 0:00:00]} Rxb3 {[%emt 0:00:00] Weighted Error Value: White=0.10 (very precise) /Black=0.07 (flawless) .  Mistake:       	White=2     	---        Inaccurate:     	White=2     	Black=3      OK:         	White=14    	Black=13     Best:        	---       	Black=2} 1/2-1/2

[Event "German Bundesliga 2023-24"]
[Site "Germany"]
[Date "2024.03.16"]
[Round "12"]
[White "Riehle, Marco"]
[Black "Jovanovic, Zoran"]
[Result "0-1"]
[ECO "C41"]
[WhiteElo "2368"]
[BlackElo "2513"]
[Annotator "TA"]
[PlyCount "90"]
[EventDate "2023.10.20"]
[EventType "team-tourn"]
[EventCountry "GER"]
[SourceTitle "playchess.com"]
[Source "ChessBase"]
[SourceQuality "1"]
[TimeControl "40/6000+30:3000+30"]

{[%evp 14,90,37,12,40,46,40,20,26,25,44,-22,-27,-21,-19,-31,-31,-29,-21,-43,-35,-48,-48,-57,-45,-111,-111,-123,-124,-123,-129,-114,-58,-74,-47,-165,-148,-150,-156,-162,-168,-179,-173,-195,-150,-171,-152,-237,-214,-370,-356,-342,-360,-318,-358,-368,-358,-384,-368,-379,-326,-399,-402,-396,-389,-413,-387,-438,-308,-1236,-1239,-1110,-1035,-5077,-2520,-6079,-5189,-2577,-1959]} 1. e4 {[%emt 0:01:00]} e5 {[%emt 0:01:00]} 2. Nf3 {[%emt 0:00:00]} d6 {[%emt 0:00:00]} 3. d4 {[%emt 0:00:00]} exd4 {[%emt 0:00:00]} 4. Nxd4 {[%emt 0:00:30]} Nf6 {[%emt 0:00:00]} 5. Nc3 {[%emt 0:00:00]} Be7 {[%emt 0:00:00]} 6. Bc4 {[%emt 0:03:00]} O-O {[%emt 0:01:30]} 7. O-O {[%emt 0:00:00]} c6 {[%emt 0:01:30]} 8. a4 {[%emt 0:04:00]} Re8 {[%emt 0:08:30]} 9. Re1 {[%emt 0:04:30]} Bf8 {[%emt 0:00:30]} 10. h3 {[%emt 0:10:30]} Nbd7 {[%emt 0:07:30] Die Stellung ist ausgeglichen.} 11. Bf4 {[%emt 0:09:30]} a5 {[%emt 0:13:30]} 12. Qf3 {[%emt 0:08:30]} (12. Ba2 $14) 12... Ne5 $11 {[%emt 0:09:30]} 13. Bxe5 {[%emt 0:00:30]} dxe5 {[%emt 0:09:30]} 14. Nf5 {[%emt 0:04:30]} Bxf5 {[%emt 0:00:30]} 15. Qxf5 {[%emt 0:00:30]} Bc5 {[%emt 0:07:30]} 16. Rad1 {[%emt 0:06:30]} Qe7 {[%emt 0:00:30]} 17. Rd3 {[%emt 0:02:30]} g6 {[%emt 0:01:30]} 18. Qg5 {[%emt 0:09:30]} Kg7 {[%emt 0:08:30]} 19. Rf3 {[%emt 0:09:30]} (19. Nd1 $15) 19... Rad8 $17 {[%emt 0:03:30]} 20. Bd3 {[%emt 0:06:30]} Bb4 {[%emt 0:02:30]} 21. Rb1 {[%emt 0:03:30]} Nd7 {[%emt 0:03:30]} 22. Qe3 {[%emt 0:09:00]} Bc5 {[%emt 0:04:30]} (22... Nc5 $17 23. Na2 Nxa4) 23. Qe2 {[%emt 0:00:25]} Nb6 {[%emt 0:00:30]} 24. Bc4 {[%emt 0:04:04] Schwarz bringt die Sache ungefährdet zu Ende.} (24. Ra1 $15) 24... Nxc4 $19 {[%emt 0:00:30]} 25. Qxc4 {[%emt 0:00:08]} Rd2 {[%emt 0:00:30]} 26. Rd1 {[%emt 0:03:24] [#]} Red8 {[%emt 0:01:30]} (26... Rxc2 27. Qb3 Rxc3 28. bxc3 $11 (28. Qxc3 Ra8 $14)) 27. Rxd2 {[%emt 0:00:20]} Rxd2 {[%emt 0:00:00]} 28. Ne2 {[%emt 0:00:13]} h5 {[%emt 0:06:00]} 29. g3 {[%emt 0:04:26]} b6 {[%emt 0:00:30]} 30. Kf1 {[%emt 0:03:25]} (30. h4 $17) 30... Qd7 {[%emt 0:00:32]} 31. g4 $2 {[%emt 0:03:10]} (31. Kg2 {kämpft weiter.}) 31... hxg4 {[%emt 0:00:28]} 32. hxg4 {[%emt 0:00:03]} Rd1+ {[%emt 0:02:28]} 33. Kg2 {[%emt 0:00:01]} Qxg4+ {[%emt 0:00:17]} 34. Ng3 {[%emt 0:00:05] [#]} Rg1+ $3 {[%emt 0:00:09][%mdl 512]} 35. Kxg1 {[%emt 0:00:03]} Qxf3 {[%emt 0:00:03][%mdl 4096] Endspiel. KQB-KQN} 36. Nh1 {[%emt 0:00:07]} Qg4+ {[%emt 0:03:09]} 37. Kf1 {[%emt 0:01:47]} Qh3+ {[%emt 0:03:41]} 38. Kg1 {[%emt 0:00:03]} Qf3 {[%emt 0:00:00] Verhindert Qe2} 39. b3 {[%emt 0:01:33]} Kf6 {[%emt 0:01:39]} 40. Kh2 {[%emt 0:01:44]} Kg5 {[%emt 0:00:00]} 41. Qd3 $2 {[%emt 0:03:59]} (41. Kg1) 41... Qxd3 {[%emt 0:11:34] Schwarz steht klar auf Gewinn.} 42. cxd3 {[%emt 0:00:00]} f5 {[%emt 0:01:30]} 43. Ng3 {[%emt 0:09:00]} Bxf2 {[%emt 0:00:00]} 44. Nf1 {[%emt 0:00:00]} fxe4 {[%emt 0:01:00] ( -> ...e3)} 45. Kg2 {[%emt 0:00:00]} Bd4 {[%emt 0:00:00] Gewichteter Fehlerwert: Weiß=0.69/Schwarz=0.11 (sehr präzise) .  Fehler:       	Weiß=6     	Schwarz=1     Ungenau:       	---       	Schwarz=1     OK:         	Weiß=10    	Schwarz=15    Bester:       	Weiß=3     	Schwarz=4     Brilliant:      	---       	Schwarz=1} 0-1

[Event "German Bundesliga 2023-24"]
[Site "Germany"]
[Date "2024.03.16"]
[Round "12.1"]
[White "Mamedyarov, Shakhriyar"]
[Black "Nisipeanu, Liviu-Dieter"]
[Result "1-0"]
[ECO "E39"]
[WhiteElo "2734"]
[BlackElo "2600"]
[Annotator "TA"]
[PlyCount "81"]
[EventDate "2023.10.20"]
[EventType "team-tourn"]
[EventCountry "GER"]
[SourceTitle "playchess.com"]
[Source "ChessBase"]
[SourceQuality "1"]
[TimeControl "40/6000+30:3000+30"]

{[%evp 29,81,0,0,0,0,3,12,0,19,0,0,0,22,0,19,18,23,24,33,0,0,0,0,0,20,12,150,149,147,0,0,0,52,0,37,36,32,37,37,35,54,49,57,58,89,83,547,524,545,481,525,521,4941,4918]} 1. d4 {[%emt 0:00:03]} Nf6 {[%emt 0:00:50]} 2. c4 {[%emt 0:00:08]} e6 {[%emt 0:00:07]} 3. Nc3 {[%emt 0:00:14]} Bb4 {[%emt 0:00:12]} 4. Qc2 {[%emt 0:00:16]} c5 {[%emt 0:01:40]} 5. dxc5 {[%emt 0:00:12]} O-O {[%emt 0:00:07]} 6. a3 {[%emt 0:01:22]} Bxc5 {[%emt 0:00:06]} 7. Nf3 {[%emt 0:01:45]} d5 {[%emt 0:03:25] is cutting edge theory.} 8. Bg5 {[%emt 0:02:09]} Be7 {[%emt 0:07:12] E39: Nimzo-Indian: Classical: 4...c5 5 dxc5 0-0.} 9. e3 {[%emt 0:11:13]} Nbd7 {[%emt 0:12:07]} 10. Rd1 {[%emt 0:03:44]} dxc4 $146 {[%emt 0:11:10]} ({Predecessor:} 10... Qa5 11. cxd5 exd5 12. Bd3 h6 13. Bh4 Nc5 14. Bh7+ Kh8 15. O-O g5 16. Nxg5 hxg5 17. Bxg5 {1-0 Neubert,M (2091)-Trost,H (1954) Unterfranken-ch M1 45th 1994 (1)}) 11. Bxc4 {[%emt 0:00:28]} h6 {[%emt 0:04:02]} 12. Bh4 {[%emt 0:06:58]} Nh5 {[%emt 0:13:47]} 13. Bxe7 {[%emt 0:04:43]} Qxe7 {[%emt 0:00:06]} 14. g4 {[%emt 0:00:07]} Nhf6 {[%emt 0:01:57]} 15. Rg1 {[%emt 0:00:36]} b5 {[%emt 0:05:14]} 16. Bxb5 {[%emt 0:02:58]} Bb7 {[%emt 0:00:04]} 17. Be2 {[%emt 0:04:22]} g5 {[%emt 0:21:38]} 18. h4 {[%emt 0:03:15]} Bxf3 $1 {[%emt 0:00:05]} 19. Bxf3 {[%emt 0:00:08]} Rab8 {[%emt 0:00:40]} 20. hxg5 {[%emt 0:06:02]} hxg5 {[%emt 0:00:05]} 21. Be2 {[%emt 0:00:10]} Qc5 {[%emt 0:02:17]} 22. Rd4 {[%emt 0:02:16]} (22. Rh1 {feels hotter.} Rfc8 23. Rh3 Kg7 24. Rd4) 22... Ne5 {[%emt 0:03:28]} 23. Qd2 {[%emt 0:02:35]} Rfc8 {[%emt 0:04:10]} 24. Kf1 {[%emt 0:03:40]} Kg7 {[%emt 0:02:56]} 25. f4 {[%emt 0:05:17]} gxf4 {[%emt 0:01:08]} 26. g5 {[%emt 0:00:56]} (26. exf4 $2 Rxb2 27. Qxb2 Qxd4 28. fxe5 Nd5 $17 (28... Qxc3 $2 29. Qxc3 Rxc3 30. exf6+ $18)) 26... Nfg4 {[%emt 0:01:15]} 27. Bxg4 {[%emt 0:01:25]} (27. Rxg4 fxe3 28. Qxe3 Nxg4 29. Bxg4 Rd8 (29... Rxb2 30. Qf4 $14)) (27. exf4 $2 Rxb2 28. Ne4 Qxa3 (28... Rxd2 $2 29. Nxc5 Rxd4 30. fxe5 $19) 29. Rxg4 Rxd2 (29... Nxg4 $2 30. Bxg4 Rxd2 31. Rxd2 $19) 30. Rxd2 Nxg4 31. Bxg4 Rc4 $19 (31... Qe3 $2 32. Re2 $19)) 27... fxe3 {[%emt 0:00:06]} (27... Nc4 $11 28. Rxc4 Qxc4+ 29. Be2 fxe3 30. Qxe3 Qc5) 28. Qxe3 $16 {[%emt 0:00:13]} Rxb2 {[%emt 0:00:06]} 29. Be2 {[%emt 0:13:35]} (29. g6 $1 $16 {[%cal Rg6f7] White wants to mate with gxf7.} fxg6 (29... Qxc3 30. Qxe5+ Kf8 31. Qh8+ Ke7 32. Qh4+ Ke8 33. gxf7+ Kf8 34. Qh6+ Ke7 35. Qxe6+ Kf8 36. Qh6+ Kxf7 37. Bh5+ Ke7 38. Qd6#) 30. Rh1 (30. Bxe6 $2 Rf8+ 31. Ke1 Nf3+ 32. Kd1 Qxd4+ $19)) 29... Rb3 $1 $11 {[%emt 0:03:17]} (29... Qxc3 $2 30. Qxe5+ Kg8 31. Rd8+ Rxd8 32. Qxc3 $18) 30. g6 {[%emt 0:00:51]} fxg6 {[%emt 0:02:31] [#]} (30... Rxc3 31. gxf7+) (30... f5 $1 $11 31. Rh1 Rxc3 32. Qh6+ Kf6 33. Qh4+ (33. g7+ Ng6 $11) 33... Kg7 (33... Kxg6 34. Qh7+ Kf6 35. Rh6+) 34. Qh6+ Kf6 35. Qh4+ (35. g7+ Ng6 $11) 35... Kg7 (35... Kxg6 36. Qh7+ Kf6 37. Rh6+) 36. Qh7+ (36. Qh6+ Kf6 $11) 36... Kf6 37. Qh4+) 31. Rh1 {[%emt 0:11:41]} (31. Rg5 $1 $14 Rf8+ (31... Rd8 $2 32. Rd7+ Nxd7 33. Rxc5 $18) 32. Ke1) 31... Nf7 {[%emt 0:03:45]} (31... Rxc3 $5 32. Qh6+ Kf7 33. Qh7+ Ke8 $11) 32. Qf2 {[%emt 0:02:05]} Rc7 {[%emt 0:02:54]} ({Stronger than} 32... Rxc3 33. Rh7+ Kxh7 34. Qxf7+ Kh8 35. Rh4+) 33. Ne4 {[%emt 0:01:30]} Qf5 $1 {[%emt 0:00:50]} 34. Kg2 {[%emt 0:03:02]} Rc2 {[%emt 0:01:41]} 35. Ra4 {[%emt 0:03:11]} a5 {[%emt 0:01:19]} 36. Rf1 {[%emt 0:05:05]} Rbb2 {[%emt 0:01:32] [#]} 37. Ng3 $1 {[%emt 0:02:41]} Rxe2 $4 {[%emt 0:00:16][%mdl 8192]} (37... Qxf2+ $16 {is tougher.} 38. Rxf2 Nd6) 38. Nxe2 $18 {[%emt 0:02:27]} (38. Nxf5+ exf5 39. Rxa5 Nh6 $16) 38... Qg5+ {[%emt 0:00:14]} 39. Kh3 {[%emt 0:03:29]} Qh5+ {[%emt 0:01:00]} 40. Rh4 {[%emt 0:00:31]} Ng5+ {[%emt 0:00:38]} 41. Kg3 {[%emt 0:50:16]} 1-0

[Event "German Bundesliga 2023-24"]
[Site "Germany"]
[Date "2024.03.16"]
[Round "12.1"]
[White "Ragger, Markus"]
[Black "Santos Latasa, Jaime"]
[Result "1/2-1/2"]
[ECO "E11"]
[WhiteElo "2615"]
[BlackElo "2615"]
[Annotator "TA"]
[PlyCount "30"]
[EventDate "2023.10.20"]
[EventType "team-tourn"]
[EventCountry "GER"]
[SourceTitle "playchess.com"]
[Source "ChessBase"]
[SourceQuality "1"]
[TimeControl "40/6000+30:3000+30"]

{[%evp 16,30,8,16,16,30,21,15,23,24,20,0,3,0,19,0,20]} 1. d4 {[%emt 0:00:01]} Nf6 {[%emt 0:00:06]} 2. c4 {[%emt 0:00:05]} e6 {[%emt 0:00:04]} 3. Nf3 {[%emt 0:00:05]} d5 {[%emt 0:00:08]} 4. g3 {[%emt 0:00:02]} Bb4+ {[%emt 0:00:14]} 5. Bd2 {[%emt 0:00:03]} Be7 {[%emt 0:00:07]} 6. Bg2 {[%emt 0:00:05]} O-O {[%emt 0:00:06]} 7. O-O {[%emt 0:00:08]} Nbd7 {[%emt 0:00:04]} 8. Qc2 {[%emt 0:00:17]} c6 {[%emt 0:00:19]} 9. Bf4 {[%emt 0:00:15]} h6 {[%emt 0:01:00]} 10. Rd1 {[%emt 0:00:52]} a5 {[%emt 0:00:25]} 11. Ne5 {[%emt 0:00:35]} Nh5 {[%emt 0:00:57]} 12. Be3 {[%emt 0:00:53]} Nhf6 {[%emt 0:00:43]} 13. Bf4 {[%emt 0:00:09] Die Stellung ist ausgeglichen.} Nh5 {[%emt 0:00:05]} 14. Be3 {[%emt 0:00:18]} Nhf6 {[%emt 0:00:05]} 15. Bf4 {[%emt 0:01:18]} Nh5 {[%emt 0:01:05] Ein ziemlich ruhiges Remis.   Gewichteter Fehlerwert: Weiß=0.06 (makellos) /Schwarz=0.00 (makellos) .  OK:         	Weiß=3     	Schwarz=4     Bester:       	---       	Schwarz=1} 1/2-1/2